bitfinex/quotes_SOLUSD_20241126
["timestamp","ask_amount","ask_price","bid_price","bid_amount"]
[1732654080703,20.6091,231.06,230.94,21.61450262]
[1732654080900,15.6091,231.06,231.01,21.61450262]
[1732654081100,8.5962,231.05,230.99,21.61450262]
[1732654081404,30.21070262,231.05,230.97,21.61450262]
[1732654081797,30.21070262,231.05,230.88,27.96120262]
[1732654081798,6.4322,231.05,230.99,21.61450262]
[1732654082991,30.21070262,231.05,230.97,21.61450262]
[1732654083192,8.5962,231.05,230.99,21.61450262]
[1732654083585,21.61450262,231.03,230.95,21.61450262]
[1732654083811,2.1643,231.02,230.95,21.61450262]
[1732654084109,2.1643,231.02,230.83,28.293]
[1732654084110,21.61450262,230.99,230.93,21.61450262]
[1732654085080,2.1643,231.02,230.85,21.61450262]
[1732654085081,21.61450262,230.95,230.85,21.61450262]
[1732654085297,7.575,231.02,230.83,4.332]
[1732654085298,21.61450262,230.97,230.9,21.61450262]
[1732654085607,6.4322,231.05,230.84,22.335077]
[1732654085815,8.5962,231.05,230.86,5.0]
[1732654085985,8.5962,231.05,230.87,15.16]
[1732654086304,8.5962,231.05,230.87,4.3314]
[1732654086692,8.5962,231.05,230.9,20.0]
[1732654087006,8.5962,231.05,230.99,21.61450262]
[1732654087210,6.4322,231.05,230.99,21.61450262]
[1732654087390,8.5962,231.05,231.0,21.61450262]
[1732654087703,8.5962,231.05,230.99,21.61450262]
[1732654087906,8.5962,231.05,230.91,20.0]
[1732654087907,21.61450262,231.03,230.96,21.61450262]
[1732654088290,35.13987663,231.03,230.96,35.13987663]
[1732654088702,8.5962,231.05,230.99,35.13987663]
[1732654088885,8.5962,231.05,231.01,35.13987663]
[1732654088886,6.4322,231.05,231.01,35.13987663]
[1732654089085,8.5962,231.05,231.0,35.13987663]
[1732654089407,35.13987663,231.04,230.97,35.13987663]
[1732654089609,35.13987663,231.03,230.95,35.13987663]
[1732654089983,35.13987663,231.01,230.94,35.13987663]
[1732654090311,35.13987663,230.96,230.89,35.13987663]
[1732654090510,35.13987663,230.96,230.85,4.3318]
[1732654090511,35.13987663,230.97,230.9,35.13987663]
[1732654090717,2.1642,231.03,230.88,35.13987663]
[1732654090902,41.57207663,231.05,230.88,35.13987663]
[1732654091095,43.73617663,231.05,230.88,35.13987663]
[1732654091300,35.13987663,231.04,230.97,35.13987663]
[1732654092019,35.13987663,231.0,230.92,35.13987663]
[1732654092405,35.13987663,231.0,230.93,35.13987663]
[1732654092610,35.13987663,230.97,230.9,35.13987663]
[1732654092787,35.13987663,230.98,230.9,35.13987663]
[1732654092989,35.13987663,230.94,230.87,35.13987663]
[1732654093184,35.13987663,231.0,230.81,35.13987663]
[1732654093185,35.13987663,230.89,230.81,35.13987663]
[1732654093383,35.13987663,230.88,230.8,35.13987663]
[1732654093584,35.13987663,230.87,230.8,35.13987663]
[1732654093917,6.4096,230.9,230.8,35.13987663]
[1732654094219,2.1649,230.96,230.75,4.99998931]
[1732654094384,6.4096,230.97,230.77,5.0]
[1732654094587,6.4096,230.97,230.78,6.6324]
[1732654094786,6.4096,230.97,230.79,4.99998931]
[1732654095007,6.4096,230.97,230.81,20.0]
[1732654095213,35.13987663,230.93,230.86,35.13987663]
[1732654095396,6.4096,230.97,230.9,35.13987663]
[1732654095599,6.4096,230.97,230.91,35.13987663]
[1732654095806,6.4096,230.97,230.79,17.337252]
[1732654096011,2.1648,230.96,230.8,4.3327]
[1732654096292,2.1648,230.96,230.79,17.337252]
[1732654096293,23.776884,230.95,230.79,4.3329]
[1732654096893,35.13987663,230.93,230.85,35.13987663]
[1732654097224,58.91676063,230.95,230.88,35.13987663]
[1732654097394,2.165,230.94,230.88,35.13987663]
[1732654097593,22.8438,230.88,230.71,4.3343]
[1732654097815,35.13987663,230.8,230.73,35.13987663]
[1732654098517,23.776884,230.79,230.71,35.13987663]
[1732654099016,35.13987663,230.8,230.64,35.13987663]
[1732654099017,35.13987663,230.8,230.73,35.13987663]
[1732654099225,35.13987663,230.83,230.76,35.13987663]
[1732654099411,35.13987663,230.83,230.65,4.3354]
[1732654099412,35.13987663,230.78,230.71,35.13987663]
[1732654099617,35.13987663,230.8,230.72,35.13987663]
[1732654100119,35.13987663,230.8,230.74,35.13987663]
[1732654100323,35.13987663,230.81,230.73,35.13987663]
[1732654100504,35.13987663,230.8,230.72,35.13987663]
[1732654101422,37.30597663,230.82,230.74,35.13987663]
[1732654101719,35.13987663,230.82,230.74,35.13987663]
[1732654102518,35.13987663,230.79,230.71,35.13987663]
[1732654102700,35.13987663,230.77,230.71,35.13987663]
[1732654102900,35.13987663,230.76,230.69,35.13987663]
[1732654103112,35.13987663,230.79,230.72,35.13987663]
[1732654103316,2.1664,230.8,230.73,35.13987663]
[1732654103317,37.30627663,230.8,230.73,35.13987663]
[1732654103530,35.13987663,230.79,230.71,35.13987663]
[1732654103732,35.13987663,230.76,230.69,35.13987663]
[1732654103907,35.13987663,230.76,230.68,35.13987663]
[1732654104225,51.40917663,230.75,230.68,35.13987663]
[1732654104796,51.40917663,230.75,230.59,4.3366]
[1732654104797,35.13987663,230.73,230.66,35.13987663]
[1732654104996,16.2693,230.75,230.55,22.35566631]
[1732654104997,51.40917663,230.75,230.68,35.13987663]
[1732654105530,16.2693,230.75,230.68,35.13987663]
[1732654105824,35.13987663,230.71,230.63,35.13987663]
[1732654106207,35.13987663,230.72,230.64,35.13987663]
[1732654106416,35.13987663,230.72,230.65,35.13987663]
[1732654106605,35.13987663,230.72,230.63,35.13987663]
[1732654106802,35.13987663,230.7,230.63,35.13987663]
[1732654107104,35.13987663,230.67,230.57,35.13987663]
[1732654107305,35.13987663,230.65,230.57,35.13987663]
[1732654107506,35.13987663,230.67,230.59,35.13987663]
[1732654107833,6.5745,230.69,230.63,35.13987663]
[1732654108328,41.71437663,230.69,230.61,35.13987663]
[1732654108639,35.13987663,230.65,230.57,35.13987663]
[1732654109123,2.1678,230.64,230.57,35.13987663]
[1732654109428,35.13987663,230.63,230.57,35.13987663]
[1732654109603,35.13987663,230.63,230.55,35.13987663]
[1732654109806,35.13987663,230.61,230.54,0.5194559]
[1732654110227,35.13987663,230.59,230.54,0.5194559]
[1732654110663,16.2693,230.62,230.54,0.5194559]
[1732654110664,35.13987663,230.57,230.54,0.5194559]
[1732654111312,37.30837663,230.57,230.54,0.5194559]
[1732654111934,2.1685,230.57,230.54,0.5194559]
[1732654112136,2.1684,230.59,230.54,0.5194559]
[1732654112329,16.2693,230.62,230.54,0.5194559]
[1732654112330,2.1682,230.61,230.56,21.70074917]
[1732654112507,2.1682,230.61,230.54,22.22020507]
[1732654113020,21.70074917,230.58,230.54,0.5194559]
[1732654113229,21.70074917,230.55,230.54,0.5194559]
[1732654113528,2.1687,230.55,230.54,0.5194559]
[1732654114142,23.86944917,230.55,230.54,0.5194559]
[1732654114848,2.1687,230.55,230.54,0.5194559]
[1732654115034,47.64633317,230.55,230.54,0.5194559]
[1732654115351,47.64633317,230.55,230.33,6.2972]
[1732654115352,53.06813317,230.55,230.41,21.70074917]
[1732654115540,21.70074917,230.47,230.4,21.70074917]
[1732654115927,16.0028,230.49,230.31,16.3903559]
[1732654116252,21.70074917,230.44,230.37,21.70074917]
[1732654116544,23.776884,230.48,230.31,0.5194559]
[1732654117343,2.1694,230.48,230.43,21.70074917]
[1732654117640,2.1688,230.54,230.47,21.70074917]
[1732654117827,2.1688,230.54,230.4,21.70074917]
[1732654117828,2.1688,230.54,230.49,21.70074917]
[1732654118196,30.31234917,230.56,230.49,21.70074917]
[1732654118332,8.6116,230.56,230.48,21.70074917]
[1732654118654,30.31234917,230.56,230.49,21.70074917]
[1732654118829,30.31234917,230.56,230.37,15.8709]
[1732654118830,21.70074917,230.53,230.37,15.8709]
[1732654119141,8.6116,230.56,230.37,15.8709]
[1732654119650,14.0331,230.56,230.37,20.2116]
[1732654120027,21.70074917,230.53,230.46,21.70074917]
[1732654120345,45.47763317,230.52,230.44,21.70074917]
[1732654120525,21.70074917,230.51,230.44,21.70074917]
[1732654120936,21.70074917,230.5,230.42,21.70074917]
[1732654121546,21.70074917,230.49,230.42,21.70074917]
[1732654121961,21.70074917,230.5,230.43,21.70074917]
[1732654122265,23.776884,230.47,230.41,21.70074917]
[1732654122433,45.47763317,230.47,230.4,21.70074917]
[1732654123561,21.70074917,230.51,230.44,21.70074917]
[1732654123735,20.0,230.51,230.31,20.7321559]
[1732654123933,23.776884,230.48,230.34,20.0]
[1732654124748,2.1694,230.47,230.4,21.70074917]
[1732654124951,2.1694,230.47,230.31,16.3903559]
[1732654124952,45.47763317,230.43,230.35,21.70074917]
[1732654125163,21.70074917,230.42,230.35,21.70074917]
[1732654125541,23.776884,230.41,230.35,21.70074917]
[1732654125741,23.776884,230.41,230.36,21.70074917]
[1732654125952,23.776884,230.42,230.36,21.70074917]
[1732654126139,23.776884,230.42,230.39,21.70074917]
[1732654126548,16.0028,230.45,230.41,21.70074917]
[1732654127145,16.0028,230.45,230.4,21.70074917]
[1732654127342,2.1696,230.46,230.41,21.70074917]
[1732654127744,28.14374917,230.48,230.41,21.70074917]
[1732654127745,2.1695,230.47,230.41,21.70074917]
[1732654128179,2.1695,230.47,230.42,21.70074917]
[1732654128180,23.776884,230.47,230.42,21.70074917]
[1732654128476,23.776884,230.47,230.41,21.70074917]
[1732654129071,28.14374917,230.48,230.41,21.70074917]
[1732654129238,28.14374917,230.48,230.4,21.70074917]
[1732654129239,21.70074917,230.47,230.4,21.70074917]
[1732654129453,30.31304917,230.48,230.4,21.70074917]
[1732654129650,21.70074917,230.47,230.4,21.70074917]
[1732654129954,30.31304917,230.48,230.4,21.70074917]
[1732654130274,30.31304917,230.48,230.32,4.3417]
[1732654130275,30.31304917,230.48,230.41,21.70074917]
[1732654130583,6.443,230.48,230.42,21.70074917]
[1732654130757,6.443,230.48,230.36,4.3409]
[1732654130758,6.443,230.48,230.43,21.70074917]
[1732654131164,6.443,230.48,230.42,21.70074917]
[1732654131365,8.6123,230.48,230.41,21.70074917]
[1732654131985,30.31304917,230.48,230.41,21.70074917]
[1732654132475,30.31304917,230.48,230.4,21.70074917]
[1732654132893,8.6123,230.48,230.42,21.70074917]
[1732654133048,30.31304917,230.48,230.41,21.70074917]
[1732654133246,30.31304917,230.48,230.4,21.70074917]
[1732654133954,21.70074917,230.44,230.32,20.0]
[1732654134155,21.70074917,230.45,230.38,21.70074917]
[1732654134360,21.70074917,230.47,230.4,21.70074917]
[1732654134890,8.6123,230.48,230.32,24.3417]
[1732654134891,30.31304917,230.48,230.41,21.70074917]
[1732654135181,21.70074917,230.47,230.4,21.70074917]
[1732654135386,23.87024917,230.47,230.4,21.70074917]
[1732654135679,21.70074917,230.46,230.39,21.70074917]
[1732654136255,21.70074917,230.45,230.38,21.70074917]
[1732654136462,21.70074917,230.46,230.39,21.70074917]
[1732654136761,23.776884,230.5,230.33,20.0]
[1732654136969,6.443,230.53,230.48,21.70074917]
[1732654137293,23.86934917,230.56,230.43,20.0]
[1732654137468,21.70074917,230.52,230.45,21.70074917]
[1732654137663,16.0028,230.57,230.4,20.0]
[1732654137869,18.1713,230.57,230.4,26.2972]
[1732654138171,6.443,230.58,230.43,20.0]
[1732654138375,6.443,230.58,230.42,5.0]
[1732654138376,6.443,230.58,230.44,20.0]
[1732654138577,6.443,230.58,230.53,21.70074917]
[1732654138767,6.443,230.65,230.57,21.70074917]
[1732654138963,21.70074917,230.64,230.56,21.70074917]
[1732654139268,8.6107,230.65,230.51,20.0]
[1732654139660,8.6107,230.65,230.51,24.3381]
[1732654139882,8.6107,230.65,230.51,20.0]
[1732654140165,14.0301,230.65,230.46,20.0]
[1732654140395,21.70074917,230.57,230.5,21.70074917]
[1732654140570,21.70074917,230.56,230.49,21.70074917]
[1732654141073,21.70074917,230.55,230.48,21.70074917]
[1732654141383,21.70074917,230.55,230.47,21.70074917]
[1732654141586,21.70074917,230.55,230.48,21.70074917]
[1732654141788,21.70074917,230.55,230.4,29.23272571]
[1732654141789,23.86944917,230.55,230.47,21.70074917]
[1732654141972,23.86944917,230.55,230.4,29.23272571]
[1732654141973,21.70074917,230.5,230.43,21.70074917]
[1732654142172,21.70074917,230.53,230.45,21.70074917]
[1732654142398,21.70074917,230.5,230.42,21.70074917]
[1732654142566,21.70074917,230.5,230.43,21.70074917]
[1732654142991,6.1052,230.53,230.34,7.63959113]
[1732654142992,21.70074917,230.49,230.42,21.70074917]
[1732654143287,21.70074917,230.51,230.44,21.70074917]
[1732654143492,2.1691,230.5,230.44,21.70074917]
[1732654144088,2.1688,230.54,230.49,21.70074917]
[1732654144587,2.1688,230.54,230.48,21.70074917]
[1732654144890,21.70074917,230.51,230.44,21.70074917]
[1732654145192,2.1669,230.75,230.59,5.0]
[1732654145502,2.1664,230.79,230.6,4.3363]
[1732654145800,12.5825,230.79,230.52,6.3874]
[1732654146095,21.70074917,230.64,230.56,21.70074917]
[1732654146390,21.70074917,230.64,230.58,21.70074917]
[1732654146599,21.70074917,230.66,230.58,21.70074917]
[1732654146774,21.70074917,230.76,230.62,21.70074917]
[1732654146775,21.70074917,230.7,230.62,21.70074917]
[1732654146986,21.70074917,230.68,230.6,21.70074917]
[1732654147196,21.70074917,230.7,230.62,21.70074917]
[1732654147702,2.1664,230.79,230.59,20.0]
[1732654147866,2.1664,230.79,230.74,21.70074917]
[1732654148074,29.28324917,230.79,230.7,21.70074917]
[1732654148495,29.28324917,230.79,230.72,21.70074917]
[1732654149098,29.28324917,230.79,230.58,5.0]
[1732654149099,21.70074917,230.73,230.62,21.70074917]
[1732654149279,23.4148,230.79,230.64,21.70074917]
[1732654149280,21.70074917,230.72,230.64,21.70074917]
[1732654149479,2.1672,230.71,230.64,21.70074917]
[1732654149686,21.70074917,230.7,230.62,21.70074917]
[1732654150279,2.1672,230.71,230.65,21.70074917]
[1732654150973,2.1672,230.71,230.64,21.70074917]
[1732654151396,2.1672,230.71,230.65,21.70074917]
[1732654151580,2.1672,230.71,230.54,4.3376]
[1732654151581,2.1672,230.71,230.68,21.70074917]
[1732654151997,2.1672,230.71,230.65,21.70074917]
[1732654152187,2.1672,230.71,230.68,21.70074917]
[1732654152384,2.1672,230.71,230.69,21.70074917]
[1732654152579,5.4173,230.74,230.52,43.49724917]
[1732654152580,27.11804917,230.74,230.67,21.70074917]
[1732654152786,5.4173,230.74,230.68,21.70074917]
[1732654153005,5.4173,230.74,230.69,21.70074917]
[1732654153212,2.1667,230.76,230.69,21.70074917]
[1732654153380,2.1667,230.76,230.7,21.70074917]
[1732654153886,29.28424917,230.76,230.68,21.70074917]
[1732654154585,7.5835,230.76,230.69,21.70074917]
[1732654154791,21.70074917,230.71,230.63,21.70074917]
[1732654155202,45.47763317,230.71,230.63,21.70074917]
[1732654155501,21.70074917,230.69,230.62,21.70074917]
[1732654156097,21.70074917,230.72,230.65,21.70074917]
[1732654156293,2.1673,230.7,230.66,21.70074917]
[1732654156499,16.2505,230.76,230.54,4.3375]
[1732654156500,2.1668,230.75,230.69,21.70074917]
[1732654156689,23.776884,230.74,230.69,21.70074917]
[1732654157084,23.776884,230.74,230.68,21.70074917]
[1732654157597,21.70074917,230.69,230.61,21.70074917]
[1732654157783,21.70074917,230.68,230.61,21.70074917]
[1732654157981,21.70074917,230.69,230.61,21.70074917]
[1732654158197,6.2912,230.67,230.52,21.70074917]
[1732654158402,2.1676,230.66,230.52,39.06243217]
[1732654158782,7.5868,230.66,230.52,39.06243217]
[1732654158989,7.5868,230.66,230.46,21.4453]
[1732654158990,23.776884,230.65,230.46,21.4453]
[1732654159401,21.70074917,230.62,230.55,21.70074917]
[1732654160120,21.70074917,230.64,230.57,21.70074917]
[1732654160317,27.11994917,230.66,230.59,21.70074917]
[1732654160492,45.47763317,230.64,230.56,21.70074917]
[1732654161099,21.70074917,230.62,230.55,21.70074917]
[1732654161396,23.776884,230.64,230.54,21.70074917]
[1732654161397,21.70074917,230.61,230.54,21.70074917]
[1732654161599,21.70074917,230.55,230.46,21.70074917]
[1732654161809,5.0,230.63,230.46,21.70074917]
[1732654161810,21.70074917,230.52,230.46,21.70074917]
[1732654162314,21.70074917,230.49,230.42,21.70074917]
[1732654162719,21.70074917,230.48,230.41,21.70074917]
[1732654163342,21.70074917,230.51,230.44,21.70074917]
[1732654163617,8.4601,230.53,230.49,21.70074917]
[1732654163809,8.4601,230.53,230.4,21.70074917]
[1732654164195,8.4601,230.53,230.49,21.70074917]
[1732654164390,16.1624,230.55,230.5,21.70074917]
[1732654164594,2.1687,230.55,230.51,21.70074917]
[1732654164822,6.2912,230.59,230.52,21.70074917]
[1732654165023,2.1686,230.57,230.53,21.70074917]
[1732654165197,23.86934917,230.57,230.5,21.70074917]
[1732654165602,2.1686,230.57,230.51,21.70074917]
[1732654165812,2.1686,230.57,230.52,21.70074917]
[1732654166327,2.1686,230.57,230.43,20.0]
[1732654166328,37.45016231,230.57,230.5,35.28156231]
[1732654166500,2.1686,230.57,230.52,35.28156231]
[1732654167108,2.1686,230.57,230.51,35.28156231]
[1732654167303,2.1686,230.57,230.52,35.28156231]
[1732654167721,2.1686,230.57,230.51,35.28156231]
[1732654168114,37.45016231,230.57,230.49,35.28156231]
[1732654168420,35.28156231,230.53,230.45,35.28156231]
[1732654168727,35.28156231,230.53,230.36,22.37349431]
[1732654168728,35.28156231,230.46,230.36,17.373505]
[1732654169026,35.28156231,230.46,230.39,35.28156231]
[1732654169196,35.28156231,230.47,230.4,35.28156231]
[1732654169398,35.28156231,230.48,230.41,35.28156231]
[1732654169627,2.1694,230.47,230.41,35.28156231]
[1732654169999,2.1694,230.47,230.4,35.28156231]
[1732654170697,37.45096231,230.47,230.4,35.28156231]
[1732654170905,35.28156231,230.55,230.46,35.28156231]
[1732654171110,35.28156231,230.55,230.48,35.28156231]
[1732654171304,37.45026231,230.55,230.48,35.28156231]
[1732654171507,37.45026231,230.55,230.47,35.28156231]
[1732654171930,35.28156231,230.53,230.46,35.28156231]
[1732654172101,35.28156231,230.53,230.45,35.28156231]
[1732654172306,35.28156231,230.52,230.44,35.28156231]
[1732654172611,2.1687,230.55,230.44,35.28156231]
[1732654172612,35.28156231,230.51,230.44,35.28156231]
[1732654173012,2.1685,230.57,230.4,40.28155162]
[1732654173325,35.28156231,230.56,230.48,35.28156231]
[1732654173499,35.28156231,230.53,230.46,35.28156231]
[1732654174100,35.28156231,230.52,230.45,35.28156231]
[1732654174299,35.28156231,230.51,230.44,35.28156231]
[1732654174822,35.28156231,230.51,230.38,24.3404]
[1732654174823,35.28156231,230.52,230.45,35.28156231]
[1732654175199,2.1691,230.51,230.45,35.28156231]
[1732654175429,37.45056231,230.53,230.46,35.28156231]
[1732654175605,2.169,230.53,230.47,35.28156231]
[1732654175807,2.169,230.53,230.48,35.28156231]
[1732654176207,2.1687,230.55,230.48,35.28156231]
[1732654176409,37.45026231,230.55,230.48,35.28156231]
[1732654176723,2.1687,230.55,230.49,35.28156231]
[1732654176898,37.45016231,230.57,230.51,35.28156231]
[1732654177101,2.1686,230.57,230.51,35.28156231]
[1732654177498,37.45016231,230.57,230.5,35.28156231]
[1732654177922,35.28156231,230.56,230.48,35.28156231]
[1732654178111,35.28156231,230.53,230.45,35.28156231]
[1732654178320,35.28156231,230.5,230.42,35.28156231]
[1732654179224,2.1692,230.49,230.42,35.28156231]
[1732654179725,2.1692,230.49,230.43,35.28156231]
[1732654180912,2.1692,230.49,230.36,4.99998931]
[1732654180913,35.28156231,230.49,230.42,35.28156231]
[1732654181111,35.28156231,230.48,230.42,35.28156231]
[1732654181422,37.45066231,230.5,230.43,35.28156231]
[1732654182329,2.1691,230.5,230.43,35.28156231]
[1732654182515,37.45056231,230.52,230.45,35.28156231]
[1732654182714,40.70326231,230.56,230.48,35.28156231]
[1732654182902,2.1687,230.55,230.49,35.28156231]
[1732654183532,2.1687,230.55,230.48,35.28156231]
[1732654184525,37.45016231,230.57,230.5,35.28156231]
[1732654184723,2.1686,230.57,230.5,35.28156231]
[1732654184906,37.45016231,230.57,230.5,35.28156231]
[1732654185311,35.28156231,230.59,230.52,35.28156231]
[1732654185839,2.1677,230.65,230.58,35.28156231]
[1732654186007,2.1677,230.65,230.52,35.28156231]
[1732654186008,41.52486231,230.69,230.61,35.28156231]
[1732654186207,6.2433,230.69,230.63,35.28156231]
[1732654186432,43.69226231,230.69,230.63,35.28156231]
[1732654186617,43.69226231,230.69,230.52,35.28156231]
[1732654186618,8.4107,230.69,230.62,35.28156231]
[1732654186938,43.69226231,230.69,230.61,35.28156231]
[1732654187224,8.4107,230.69,230.62,35.28156231]
[1732654188331,20.0,230.62,230.46,4.99998931]
[1732654188512,21.70403145,230.59,230.5,21.70403145]
[1732654188715,21.70403145,230.61,230.52,21.70403145]
[1732654189433,6.2433,230.68,230.56,21.70403145]
[1732654189636,21.70403145,230.65,230.56,21.70403145]
[1732654189819,21.70403145,230.63,230.56,21.70403145]
[1732654190224,21.70403145,230.65,230.58,21.70403145]
[1732654190435,23.87183145,230.65,230.58,21.70403145]
[1732654190735,2.1678,230.65,230.58,21.70403145]
[1732654191038,23.87183145,230.65,230.56,21.70403145]
[1732654191949,21.70403145,230.63,230.56,21.70403145]
[1732654192514,21.70403145,230.59,230.53,21.70403145]
[1732654192714,21.70403145,230.61,230.54,21.70403145]
[1732654192932,21.70403145,230.61,230.51,16.5677]
[1732654192933,21.70403145,230.62,230.51,16.5677]
[1732654193126,7.5864,230.67,230.51,16.5677]
[1732654193537,20.0,230.64,230.51,16.5677]
[1732654193747,7.5864,230.67,230.51,16.5677]
[1732654193948,2.1675,230.67,230.51,20.9057]
[1732654194424,21.70403145,230.64,230.57,21.70403145]
[1732654195818,21.70403145,230.67,230.53,9.99998931]
[1732654196015,23.87153145,230.68,230.61,21.70403145]
[1732654196239,23.87153145,230.68,230.6,21.70403145]
[1732654196618,21.70403145,230.67,230.6,21.70403145]
[1732654197154,21.70403145,230.66,230.58,21.70403145]
[1732654197446,2.1676,230.67,230.56,21.70403145]
[1732654197447,21.70403145,230.63,230.56,21.70403145]
[1732654197743,21.70403145,230.63,230.55,21.70403145]
[1732654197946,21.70403145,230.61,230.53,21.70403145]
[1732654198127,21.70403145,230.61,230.54,21.70403145]
[1732654198443,21.70403145,230.62,230.55,21.70403145]
[1732654198742,21.70403145,230.64,230.57,21.70403145]
[1732654199129,23.87153145,230.68,230.6,21.70403145]
[1732654199331,21.70403145,230.69,230.61,21.70403145]
[1732654199549,22.4342,230.73,230.54,40.1817]
[1732654199718,22.4342,230.73,230.6,21.70403145]
[1732654200046,22.4342,230.79,230.59,6.4953]
[1732654200225,7.5829,230.78,230.59,6.4953]
[1732654200418,6.2433,230.85,230.66,20.0]
[1732654200637,2.166,230.84,230.66,20.0]
[1732654201144,21.70403145,230.76,230.68,21.70403145]
[1732654201347,21.70403145,230.72,230.64,21.70403145]
[1732654201531,21.70403145,230.7,230.63,38.27173145]
[1732654201727,23.776884,230.83,230.66,20.0]
[1732654201923,7.581,230.84,230.66,20.0]
[1732654202235,5.5,230.92,230.63,20.9036]
[1732654202236,2.1654,230.9,230.73,20.0]
[1732654202439,2.1654,230.9,230.72,4.99998931]
[1732654202440,2.1654,230.9,230.75,20.0]
[1732654202750,21.70403145,230.89,230.81,21.70403145]
[1732654203537,21.70403145,230.87,230.77,21.70403145]
[1732654203736,21.70403145,230.84,230.75,21.70403145]
[1732654204055,21.70403145,230.86,230.79,21.70403145]
[1732654204257,21.70403145,230.89,230.82,21.70403145]
[1732654204544,21.70403145,230.89,230.81,21.70403145]
[1732654205442,21.70403145,230.91,230.84,21.70403145]
[1732654205645,6.645,230.97,230.9,21.70403145]
[1732654205958,27.32458433,230.98,230.81,26.0641]
[1732654205959,5.62055288,230.98,230.93,21.70403145]
[1732654206253,21.70403145,230.96,230.84,20.0]
[1732654206547,29.48928433,230.98,230.91,21.70403145]
[1732654206857,5.62055288,230.98,230.93,21.70403145]
[1732654207023,5.62055288,230.98,230.92,21.70403145]
[1732654207222,27.32458433,230.98,230.9,21.70403145]
[1732654207427,27.32458433,230.98,230.91,21.70403145]
[1732654207730,21.70403145,231.09,230.97,21.70403145]
[1732654207934,21.70403145,231.07,230.98,21.70403145]
[1732654208135,21.70403145,231.01,230.92,21.70403145]
[1732654208335,2.6829559,231.11,230.92,20.0]
[1732654208554,21.70403145,231.05,230.93,20.0]
[1732654208727,21.70403145,231.05,230.99,21.70403145]
[1732654209050,21.70403145,231.04,230.96,21.70403145]
[1732654209244,21.70403145,231.06,230.98,21.70403145]
[1732654209430,21.70403145,231.08,231.0,21.70403145]
[1732654210438,22.22348735,231.11,231.04,21.70403145]
[1732654210755,22.22348735,231.11,231.1,21.70403145]
[1732654210756,0.5194559,231.11,231.1,21.70403145]
[1732654211044,0.5194559,231.11,231.03,20.0]
[1732654211635,0.5194559,231.11,231.0,15.5506]
[1732654211943,2.1635,231.1,230.92,15.5506]
[1732654212139,21.70403145,231.06,230.99,21.70403145]
[1732654212342,21.70403145,231.08,231.0,21.70403145]
[1732654212542,2.1635,231.1,231.01,21.70403145]
[1732654212543,21.70403145,231.09,231.01,21.70403145]
[1732654213042,0.5194559,231.11,231.01,4.99998931]
[1732654213344,0.5194559,231.11,231.05,21.70403145]
[1732654213649,21.70403145,231.08,230.97,20.0]
[1732654213854,2.6828559,231.11,230.92,16.84785045]
[1732654214055,6.645,231.1,230.88,4.3311]
[1732654214225,6.645,231.1,230.86,10.3956]
[1732654214430,23.776884,231.09,230.86,10.3956]
[1732654214753,23.776884,231.05,230.86,10.3956]
[1732654214956,21.70403145,230.99,230.92,21.70403145]
[1732654215142,20.0,231.06,230.86,10.3956]
[1732654215143,21.70403145,231.0,230.93,21.70403145]
[1732654215342,21.70403145,231.05,230.97,21.70403145]
[1732654215532,8.8086,231.1,231.0,21.70403145]
[1732654215854,8.8086,231.1,230.88,21.70403145]
[1732654215855,8.8086,231.1,230.93,4.99998931]
[1732654216158,0.5194559,231.11,230.94,23.776884]
[1732654216451,0.5194559,231.11,230.97,20.0]
[1732654216630,0.5194559,231.11,231.08,21.70403145]
[1732654216831,0.5194559,231.11,231.06,21.70403145]
[1732654217138,0.5194559,231.11,231.1,21.70403145]
[1732654217446,0.05530773,231.11,231.1,21.70403145]
[1732654218341,0.05530773,231.11,231.07,21.70403145]
[1732654218954,0.05530773,231.11,231.04,21.70403145]
[1732654218955,21.75933918,231.11,231.04,21.70403145]
[1732654219159,0.05530773,231.11,231.06,21.70403145]
[1732654219534,0.05530773,231.11,231.05,21.70403145]
[1732654219735,0.05530773,231.11,231.04,21.70403145]
[1732654219951,21.75933918,231.11,231.04,21.70403145]
[1732654220135,21.75933918,231.11,231.05,21.70403145]
[1732654220136,0.05530773,231.11,231.05,21.70403145]
[1732654220450,21.70403145,231.08,231.01,21.70403145]
[1732654220651,21.70403145,231.07,231.0,21.70403145]
[1732654220856,21.70403145,231.09,231.02,21.70403145]
[1732654221036,21.70403145,231.1,231.03,21.70403145]
[1732654221238,23.86763145,231.1,230.96,4.3296]
[1732654221435,0.05530773,231.11,231.08,21.70403145]
[1732654221635,0.05530773,231.11,231.01,4.99998931]
[1732654221852,0.05530773,231.11,231.1,21.70403145]